bitfinex-derivatives/quotes_SOLF0:USTF0_20260211
["timestamp","ask_amount","ask_price","bid_price","bid_amount"]
[1770789135464,4.00174688,81.879,81.826,2.15941823]
[1770789135864,4.00174688,81.879,81.83,3.05047957]
[1770789137461,4.00174688,81.879,81.83,5.2317887]
[1770789137666,4.00174688,81.879,81.84,3.05047957]
[1770789138268,4.00174688,81.879,81.831,2.18130913]
[1770789140169,4.00174688,81.879,81.84,5.28231069]
[1770789140570,4.00174688,81.879,81.84,2.23183112]
[1770789143076,4.0078206,81.891,81.851,2.22346175]
[1770789143274,22.43316688,81.957,81.851,2.22346175]
[1770789143275,4.0078206,81.909,81.86,3.05712456]
[1770789144786,3.85455547,81.907,81.86,3.05712456]
[1770789146784,3.85455547,81.905,81.86,3.05712456]
[1770789147989,3.85455547,81.917,81.88,3.05712456]
[1770789149187,3.85455547,81.917,81.871,2.21225633]
[1770789149685,3.85455547,81.914,81.871,2.21225633]
[1770789151591,10.9942,81.915,81.87,3.05712456]
[1770789151592,3.85455547,81.911,81.87,3.05712456]
[1770789151793,3.85455547,81.911,81.86,3.05712456]
[1770789151993,3.85455547,81.911,81.861,2.22037696]
[1770789152791,3.85455547,81.909,81.861,2.22037696]
[1770789153293,3.85455547,81.906,81.861,2.22037696]
[1770789153492,3.85455547,81.906,81.87,3.05712456]
[1770789153790,3.85455547,81.906,81.871,2.17803748]
[1770789154693,3.85455547,81.925,81.88,3.05712456]
[1770789157189,3.85455547,81.925,81.881,2.15673729]
[1770789157891,3.85455547,81.925,81.882,2.16727889]
[1770789158097,3.85455547,81.925,81.89,5.22440344]
[1770789159395,3.85455547,81.925,81.881,10.9986]
[1770789159698,3.85455547,81.925,81.882,2.0073463]
[1770789160292,3.85455547,81.936,81.89,3.05712456]
[1770789160698,3.85455547,81.936,81.891,2.00734629]
[1770789161100,3.85455547,81.934,81.891,2.00734629]
[1770789161400,3.85455547,81.934,81.88,3.05712456]
[1770789161601,3.85455547,81.934,81.88,5.06447084]
[1770789161990,3.85455547,81.934,81.881,2.06292855]
[1770789162795,3.85455547,81.932,81.881,2.06292855]
[1770789165100,10.9921,81.93,81.881,2.06292855]
[1770789165305,3.85455547,81.929,81.881,2.06292855]
[1770789166199,3.85455547,81.927,81.881,2.06292855]
[1770789167705,3.05712456,81.93,81.881,2.06292855]
[1770789167706,3.85455547,81.923,81.881,2.06292855]
[1770789167909,3.85455547,81.919,81.87,3.05712456]
[1770789170005,3.85455547,81.909,81.861,2.27931021]
[1770789170204,3.85455547,81.909,81.847,97.44]
[1770789170205,3.735987,81.921,81.881,2.2787539]
[1770789173820,3.735987,81.92,81.881,2.2787539]
[1770789174820,3.735987,81.919,81.881,2.2787539]
[1770789177119,14.728187,81.93,81.891,2.3144774]
[1770789177523,3.735987,81.929,81.891,2.3144774]
[1770789177725,3.735987,81.929,81.88,16.3700364]
[1770789178025,3.735987,81.929,81.881,2.31421184]
[1770789178526,3.735987,81.919,81.881,2.31421184]
[1770789178724,3.735987,81.909,81.86,3.05712456]
[1770789179821,3.735987,81.909,81.862,11.0011]
[1770789180222,3.735987,81.909,81.863,2.3835425]
[1770789180522,3.735987,81.909,81.87,3.05712456]
[1770789180822,3.735987,81.909,81.871,2.3835425]
[1770789181623,3.735987,81.909,81.847,97.44]
[1770789181624,3.735987,81.929,81.89,3.05712456]
[1770789181818,3.735987,81.929,81.847,97.44]
[1770789182026,3.735987,81.919,81.871,2.47486588]
[1770789184027,3.735987,81.919,81.88,3.05712456]
[1770789185729,3.735987,81.919,81.881,2.38151733]
[1770789186136,14.726287,81.944,81.9,5.43864188]
[1770789186331,8.81265623,81.943,81.901,2.38151732]
[1770789186522,3.735987,81.953,81.92,3.05712456]
[1770789187234,3.735987,81.953,81.913,2.38151732]
[1770789190125,3.735987,81.953,81.92,3.05712456]
[1770789190735,12.54965101,81.965,81.92,5.47320488]
[1770789190942,3.735987,81.963,81.92,5.47320488]
[1770789192346,3.735987,81.963,81.921,2.35662273]
[1770789197944,3.735987,81.963,81.92,3.05712456]
[1770789198150,10.9873,81.966,81.91,3.05712456]
[1770789198151,3.735987,81.959,81.91,3.05712456]
[1770789198449,3.735987,81.959,81.92,3.05712456]
[1770789201653,3.735987,81.959,81.913,2.4262982]
[1770789202857,3.735987,81.959,81.92,3.05077354]
[1770789205355,3.735987,81.959,81.913,2.4262982]
[1770789205555,4.00487867,81.949,81.902,2.35090112]
[1770789206156,4.00487867,81.939,81.889,10.9975]
[1770789206457,4.00487867,81.929,81.889,10.9975]
[1770789206959,4.00487867,81.95,81.901,2.31368593]
[1770789207753,4.00487867,81.95,81.91,3.05077354]
[1770789209166,4.00487867,81.949,81.903,2.38167269]
[1770789213758,4.00487867,81.949,81.915,2.1924047]
[1770789214065,4.00487867,81.949,81.92,3.05077354]
[1770789214256,4.00487867,81.949,81.915,2.1924047]
[1770789215751,4.00487867,81.949,81.91,3.05077354]
[1770789215954,4.00487867,81.949,81.901,2.18476121]
[1770789216157,4.00487867,81.939,81.891,2.1847612]
[1770789217767,4.00487867,81.939,81.896,10.9966]
[1770789219268,4.00487867,81.939,81.897,2.23107337]
[1770789220462,4.00487867,81.939,81.9,3.05077354]
[1770789222566,4.00487867,81.939,81.9,5.28282687]
[1770789231067,3.05077354,81.93,81.889,10.9975]
[1770789231376,3.88884146,81.929,81.871,2.34676474]
[1770789231575,3.88884146,81.929,81.882,2.34676474]
[1770789231977,3.88884146,81.929,81.89,3.05077354]
[1770789234475,3.88884146,81.929,81.89,3.05299908]
[1770789234672,3.88884146,81.929,81.891,2.34695811]
[1770789238679,3.88884146,81.929,81.881,2.25461586]
[1770789238879,3.88884146,81.929,81.891,2.25461586]
[1770789239674,3.88884146,81.929,81.88,5.30761277]
[1770789239877,3.88884146,81.929,81.881,2.25461369]
[1770789240675,3.88884146,81.929,81.891,2.25461369]
[1770789242782,3.88884146,81.929,81.891,13.25181369]
[1770789246781,3.88884146,81.929,81.891,2.25461369]
[1770789247285,3.88884146,81.939,81.893,2.2338698]
[1770789247484,3.88884146,81.937,81.893,2.2338698]
[1770789247879,3.88884146,81.935,81.893,2.2338698]
[1770789248282,3.88884146,81.93,81.893,2.2338698]
[1770789248486,3.88884146,81.93,81.885,10.9981]
[1770789248885,3.88884146,81.93,81.882,2.24973567]
[1770789249086,8.79344014,81.929,81.882,2.24973567]
[1770789249287,3.88884146,81.92,81.856,2.24973566]
[1770789249488,3.88884146,81.92,81.87,3.05299908]
[1770789249690,3.88884146,81.919,81.87,3.05299908]
[1770789250080,3.88884146,81.918,81.87,5.30565112]
[1770789250582,3.88884146,81.918,81.871,2.25265204]
[1770789251488,3.88884146,81.916,81.871,2.25265204]
[1770789252784,3.88884146,81.931,81.891,2.31456544]
[1770789253686,3.88884146,81.931,81.9,3.05299908]
[1770789254093,3.88884146,81.931,81.891,2.31456544]
[1770789255193,10.9911,81.938,81.891,2.31456544]
[1770789255392,10.9911,81.938,81.901,2.31087035]
[1770789255795,3.88884146,81.944,81.901,2.31087035]
[1770789256097,3.88884146,81.942,81.901,2.31087035]
[1770789256288,3.88884146,81.957,81.92,3.05299908]
[1770789257494,3.88884146,81.957,81.921,2.13702373]
[1770789257790,3.88884146,81.971,81.93,3.05299908]
[1770789257996,3.88884146,81.971,81.93,5.18250327]
[1770789258697,3.88884146,81.971,81.94,3.05299908]
[1770789258898,10.9856,81.979,81.94,3.05299908]
[1770789259493,3.88884146,81.983,81.95,3.05299908]
[1770789259994,3.88884146,81.983,81.941,2.12950418]
[1770789260198,3.05299908,81.98,81.925,2.13550486]
[1770789260400,3.83038555,81.969,81.925,2.13550486]
[1770789262395,3.83038555,81.969,81.92,3.05299908]
[1770789262591,3.83038555,81.967,81.92,3.05299908]
[1770789264903,3.83038555,81.967,81.92,3.05053411]
[1770789265405,3.73012103,81.959,81.91,3.05053411]
[1770789265797,3.73012103,81.959,81.911,2.37596723]
[1770789265992,3.73012103,81.959,81.921,2.37596723]
[1770789267807,3.73012103,81.959,81.92,3.05053411]
[1770789267808,3.73012103,81.949,81.908,2.22337921]
[1770789273710,3.73012103,81.949,81.901,2.40696076]
[1770789274705,3.73012103,81.947,81.901,2.40696076]
[1770789276312,3.73012103,81.947,81.911,2.45039648]
[1770789279823,3.73012103,81.947,81.901,2.26632268]
[1770789282420,3.73012103,81.947,81.903,13.30068911]
[1770789282925,3.73012103,81.947,81.904,2.30498911]
[1770789283527,3.73012103,81.947,81.911,2.30498911]
[1770789285728,3.73012103,81.939,81.891,2.21616704]
[1770789286128,3.73012103,81.939,81.9,5.26670115]
[1770789288128,3.73012103,81.939,81.901,2.20875168]
[1770789298941,3.73012103,81.939,81.89,3.05053411]
[1770789300142,3.73012103,81.939,81.891,10.9972]
[1770789300944,3.91368736,81.919,81.875,1.96980074]
[1770789301638,3.91368736,81.909,81.864,1.96980074]
[1770789302444,3.91368736,81.909,81.871,1.87726403]
[1770789303333,3.91368736,81.909,81.861,1.87726403]
[1770789307934,3.91368736,81.908,81.861,1.87726403]
[1770789308139,3.91368736,81.908,81.85,3.05053411]
[1770789308140,3.91368736,81.899,81.85,4.99759864]
[1770789308731,3.91368736,81.899,81.851,1.94706453]
[1770789311247,3.91368736,81.899,81.853,11.0024]
[1770789312142,3.91368736,81.899,81.86,1.88958091]
[1770789312360,3.91368736,81.91,81.88,3.05053411]
[1770789312743,3.91368736,81.921,81.881,1.88958091]
[1770789313345,3.91368736,81.939,81.891,1.88958091]
[1770789314344,3.91368736,81.929,81.89,3.05053411]
[1770789314649,3.91368736,81.929,81.881,1.84050272]
[1770789315240,3.91368736,81.929,81.89,3.05053411]
[1770789321442,3.75185523,81.899,81.858,11.0016]
[1770789321648,3.75185523,81.899,81.795,37.50931388]
[1770789321649,3.05053411,81.88,81.843,1.84024833]
[1770789321852,3.75185523,81.907,81.851,1.84390675]
[1770789322052,3.75185523,81.907,81.871,1.84390675]
[1770789322261,3.75185523,81.919,81.871,1.84390675]
[1770789322448,3.75185523,81.919,81.89,3.05053411]
[1770789322749,3.75185523,81.938,81.89,4.89444086]
[1770789324855,3.75185523,81.938,81.89,4.89670599]
[1770789325446,3.75185523,81.938,81.88,10.9987]
[1770789325447,3.75185523,81.938,81.901,1.91634838]
[1770789325653,3.82672738,81.929,81.88,3.05279924]
[1770789325849,3.82672738,81.929,81.881,1.84211598]
[1770789326759,3.82672738,81.926,81.881,1.84211598]
[1770789327158,3.82672738,81.926,81.89,3.05279924]
[1770789327861,3.82672738,81.926,81.9,3.05279924]
[1770789328658,3.82672738,81.926,81.891,1.87092354]
[1770789330356,3.82672738,81.926,81.9,3.05279924]
[1770789331263,3.82672738,81.926,81.891,1.87092354]
[1770789331663,3.82672738,81.943,81.891,1.87092354]
[1770789332367,3.82672738,81.943,81.9,3.05279924]
[1770789332559,3.82672738,81.943,81.9,4.92735899]
[1770789332769,3.82672738,81.964,81.92,3.05279924]
[1770789332959,3.82672738,81.964,81.93,3.05279924]
[1770789333159,3.82672738,81.964,81.921,1.87455975]
[1770789333361,3.82672738,81.964,81.93,3.05279924]
[1770789333555,3.82672738,81.964,81.913,10.9943]
[1770789333755,3.82672738,81.964,81.911,1.87455975]
[1770789336466,3.82672738,81.964,81.92,3.05279924]
[1770789340074,3.82672738,81.962,81.92,3.05279924]
[1770789343884,3.82672738,81.959,81.92,3.05279924]
[1770789344086,3.82672738,81.959,81.911,1.87455975]
[1770789345380,3.82672738,81.959,81.92,3.05279924]
[1770789346082,3.82672738,81.959,81.911,1.87455975]
[1770789348684,3.82672738,81.949,81.9,2.08527069]
[1770789348890,3.82672738,81.949,81.901,2.08527069]
[1770789349081,3.82672738,81.949,81.91,5.13806993]
[1770789349588,3.82672738,81.949,81.911,2.08527069]
[1770789349785,3.82672738,81.948,81.911,2.08527069]
[1770789354692,3.80154429,81.96,81.921,2.12014129]
[1770789354892,3.80154429,81.957,81.91,3.05279924]
[1770789355391,3.80154429,81.957,81.911,2.12014129]
[1770789357895,3.80154429,81.957,81.87,36.67]
[1770789357896,3.80154429,81.969,81.922,2.03334764]
[1770789358792,3.80154429,81.969,81.925,2.03334764]
[1770789360195,3.80154429,81.967,81.92,3.05135051]
[1770789360396,3.80154429,81.967,81.92,5.04234185]
[1770789360796,108.70996296,81.99,81.911,1.99099134]
[1770789360797,3.80154429,81.959,81.911,1.99099134]
[1770789363899,3.80154429,81.956,81.911,1.99099134]
[1770789365100,3.80154429,81.939,81.892,2.03354485]
[1770789366701,3.80154429,81.937,81.892,2.03354485]
[1770789368602,3.80154429,81.929,81.892,2.03354485]
[1770789368810,3.80154429,81.929,81.881,2.1372331]
[1770789369305,3.80154429,81.927,81.881,2.1372331]
[1770789369801,3.80154429,81.926,81.881,2.1372331]
[1770789374703,3.80154429,81.916,81.858,2.12562115]
[1770789374908,3.80154429,81.899,81.85,5.17697166]
[1770789375112,3.80154429,81.899,81.85,2.12562115]
[1770789375611,3.80154429,81.889,81.85,2.12562115]
[1770789376108,10.9982,81.885,81.85,2.12562115]
[1770789376302,3.80154429,81.884,81.85,2.12562115]
[1770789377911,10.9985,81.883,81.85,2.12562115]
[1770789378304,3.80154429,81.882,81.85,2.12562115]
[1770789378906,3.80154429,81.882,81.799,36.67]
[1770789378907,3.80154429,81.882,81.823,2.10877908]
[1770789379113,3.80154429,81.869,81.823,2.10877908]
[1770789379309,3.80154429,81.879,81.831,2.10877908]
[1770789379509,3.80154429,81.879,81.84,3.05135051]
[1770789380110,3.80154429,81.879,81.831,2.10877908]
[1770789380815,10.9995,81.875,81.831,2.10877908]
[1770789381216,10.998,81.887,81.841,2.07339172]
[1770789381612,10.998,81.887,81.85,3.05135051]
[1770789381814,14.75319908,81.887,81.85,3.05135051]
[1770789382115,3.75519908,81.886,81.841,2.07339172]
[1770789384713,97.44,81.918,81.774,36.67]
[1770789384714,10.9966,81.897,81.86,3.05135051]
[1770789384923,4.10555062,81.896,81.86,3.05135051]
[1770789385313,4.10555062,81.896,81.851,2.10998549]
[1770789388312,4.10555062,81.896,81.85,3.05569652]
[1770789388313,4.10555062,81.889,81.84,3.05569652]
[1770789388512,4.10555062,81.889,81.841,2.16233588]
[1770789389722,4.10555062,81.888,81.841,2.16233588]
[1770789391225,4.10555062,81.888,81.851,2.1770833]
[1770789391926,4.10555062,81.888,81.86,3.05569652]
[1770789392323,4.10555062,81.888,81.851,2.1770833]
[1770789394329,4.10555062,81.888,81.84,5.13678733]
[1770789394526,4.10555062,81.888,81.841,2.08109081]
[1770789395624,4.10555062,81.888,81.85,3.05569652]
[1770789395829,4.10555062,81.888,81.851,2.13827727]
[1770789397530,4.10555062,81.888,81.86,3.05569652]
[1770789398235,3.05569652,81.91,81.86,3.05569652]
[1770789398428,4.10555062,81.909,81.86,3.05569652]
[1770789400732,4.10555062,81.909,81.863,2.05176069]
[1770789401327,4.10555062,81.909,81.808,193.26]
[1770789401328,4.10555062,81.897,81.851,2.05176069]
[1770789405135,4.10555062,81.897,81.814,134.13]
[1770789405136,4.10555062,81.897,81.861,2.07840655]
[1770789406031,4.10555062,81.897,81.833,2.07247959]
[1770789406240,3.05569652,81.86,81.81,3.05569652]
[1770789406437,4.10555062,81.859,81.811,2.07247959]
[1770789406749,4.10555062,81.869,81.821,2.07247959]
[1770789410848,3.05569652,81.88,81.831,2.55501158]
[1770789411045,3.74929531,81.879,81.831,2.55501158]
[1770789411548,3.74929531,81.879,81.834,2.55501158]
[1770789411737,3.74929531,81.879,81.841,2.55501158]
[1770789414851,3.74929531,81.879,81.83,3.05569652]
[1770789415452,3.74929531,81.879,81.83,5.64231308]
[1770789416546,3.74929531,81.879,81.831,2.55955907]
[1770789417852,3.74929531,81.879,81.84,3.05569652]
[1770789418155,3.74929531,81.879,81.841,2.54366089]
[1770789419249,3.74929531,81.9,81.86,3.05569652]
[1770789419552,3.05569652,81.91,81.86,3.05569652]
[1770789419553,12.52269669,81.899,81.86,3.05569652]
[1770789419755,3.74929531,81.899,81.86,3.05569652]
[1770789420353,8.77409087,81.898,81.86,3.05569652]
[1770789420558,3.74929531,81.899,81.86,3.05569652]
[1770789420757,8.77574151,81.898,81.86,3.05569652]
[1770789420958,3.74929531,81.899,81.86,3.05569652]
[1770789421154,8.77905987,81.898,81.861,2.50444502]
[1770789421454,3.74929531,81.909,81.87,3.05569652]
[1770789421654,12.52968069,81.908,81.87,3.05569652]
[1770789421850,8.78038538,81.907,81.87,3.05569652]
[1770789422049,3.74929531,81.908,81.87,3.05569652]
[1770789424854,3.74929531,81.908,81.861,2.50444502]
[1770789428858,3.74929531,81.899,81.85,3.05569652]
[1770789429658,3.74929531,81.899,81.85,5.5633173]
[1770789430962,3.74929531,81.899,81.851,11.0027]
[1770789431661,3.74929531,81.899,81.854,11.0022]
[1770789432157,3.74929531,81.899,81.852,2.63957703]
[1770789432158,3.74929531,81.899,81.855,2.63957703]
[1770789433757,3.74929531,81.899,81.856,11.002]
[1770789433957,3.74929531,81.899,81.857,2.59780754]
[1770789436553,3.74929531,81.92,81.88,3.05569652]
[1770789436866,3.74929531,81.918,81.871,2.59212726]
[1770789437057,3.74929531,81.909,81.86,3.05569652]
[1770789437365,3.74929531,81.907,81.86,5.64782378]
[1770789437562,3.74929531,81.899,81.853,2.59212726]
[1770789437768,9.01192092,81.898,81.853,2.59212726]
[1770789437969,3.74929531,81.896,81.853,2.59212726]
[1770789438169,3.74929531,81.895,81.853,2.59212726]
[1770789441568,3.05569652,81.89,81.842,2.56387927]
[1770789441771,4.08332997,81.888,81.834,11.0049]
[1770789442273,4.08332997,81.888,81.834,13.53439086]
[1770789442470,4.08332997,81.888,81.835,2.52949086]
[1770789442670,4.08332997,81.888,81.85,3.05569652]
[1770789443567,3.05569652,81.9,81.851,2.52949086]
[1770789443872,4.08332997,81.899,81.851,2.52949086]
[1770789444672,4.08332997,81.899,81.86,3.05569652]
[1770789446867,4.08332997,81.899,81.86,3.05520619]
[1770789448876,4.08332997,81.899,81.861,2.47659751]
[1770789449076,3.87552665,81.91,81.87,3.05520619]
[1770789449273,3.87552665,81.91,81.871,2.47659751]
[1770789450075,3.87552665,81.909,81.86,3.05520619]
[1770789450273,3.87552665,81.907,81.859,2.47043293]
[1770789450577,3.87552665,81.905,81.859,2.47043293]
[1770789451578,3.05520619,81.9,81.838,97.46]
[1770789451782,97.46,81.93,81.83,3.05520619]
[1770789451783,3.87552665,81.879,81.83,3.05520619]
[1770789452079,3.87552665,81.879,81.831,2.55230688]
[1770789452580,3.87552665,81.879,81.833,11.0051]
[1770789453076,3.87552665,81.879,81.833,13.55740688]
[1770789453274,3.87552665,81.879,81.834,2.55230688]
[1770789460685,3.87552665,81.869,81.823,2.7969258]
[1770789461776,3.87552665,81.867,81.823,2.7969258]
[1770789461974,3.87552665,81.867,81.812,13.8050846]
[1770789462685,3.87552665,81.867,81.813,2.7971846]
[1770789463473,3.87552665,81.867,81.8,97.48]
[1770789463474,3.87552665,81.867,81.821,2.7971846]
[1770789464885,3.87552665,81.867,81.823,2.79493905]
[1770789470277,3.87552665,81.867,81.824,2.78922577]
[1770789476495,3.87552665,81.867,81.825,11.0062]
[1770789476795,3.87552665,81.867,81.826,2.64180214]
[1770789479595,3.87552665,81.867,81.82,3.05811614]
[1770789479798,3.97518942,81.859,81.815,13.65544192]
[1770789480401,3.97518942,81.849,81.806,2.64804192]
[1770789481799,3.97518942,81.849,81.808,2.72132602]
[1770789482096,3.97518942,81.849,81.811,2.72132602]
[1770789482395,3.97518942,81.861,81.821,2.72132602]
[1770789483893,3.97518942,81.87,81.831,2.72132602]
[1770789486997,3.97518942,81.87,81.83,3.05811614]
[1770789487204,3.97518942,81.869,81.827,11.0058]
[1770789487895,3.97518942,81.869,81.817,2.64842992]
[1770789487896,3.97518942,81.869,81.824,11.0062]
[1770789488098,3.97518942,81.859,81.824,11.0062]
[1770789496221,3.97518942,81.879,81.83,3.05811614]
[1770789496428,3.97518942,81.877,81.828,2.4874907]
[1770789496618,3.97518942,81.869,81.828,2.4874907]
[1770789496820,3.97518942,81.867,81.828,2.4874907]
[1770789497830,3.97518942,81.867,81.82,14.06481614]
[1770789498123,3.97518942,81.865,81.82,16.53954772]
[1770789499228,3.97518942,81.865,81.824,11.0062]
[1770789500325,4.0403182,81.863,81.824,11.0062]
[1770789500629,4.0403182,81.861,81.824,11.0062]
[1770789501022,4.0403182,81.859,81.824,11.0062]
[1770789501223,4.0403182,81.857,81.824,11.0062]
[1770789502531,4.0403182,81.878,81.825,2.50660672]
[1770789502833,4.0403182,81.869,81.825,2.50660672]
[1770789503133,4.0403182,81.867,81.825,2.50660672]
[1770789503331,4.0403182,81.865,81.825,2.50660672]
[1770789503629,4.0403182,81.863,81.825,2.50660672]
[1770789503831,9.00881,81.862,81.825,2.50660672]
[1770789504032,4.0403182,81.863,81.825,2.50660672]
[1770789504232,3.92079645,81.861,81.825,2.50660672]
[1770789505741,22.43316688,81.911,81.795,36.66]
[1770789505742,9.00800257,81.86,81.795,36.66]
[1770789505930,3.92079645,81.829,81.783,2.47424715]
[1770789506136,3.92079645,81.827,81.783,2.47424715]
[1770789506327,3.92079645,81.849,81.801,2.47424715]
[1770789506529,3.92079645,81.847,81.801,2.47424715]
[1770789506728,8.99598205,81.846,81.801,2.47424715]
[1770789506930,3.92079645,81.847,81.811,2.47424715]
[1770789507632,3.92079645,81.861,81.821,2.47424715]
[1770789507829,3.92079645,81.861,81.83,3.05811614]
[1770789508227,97.5,81.892,81.84,3.05811614]
[1770789508228,3.92079645,81.873,81.84,3.05811614]
[1770789508532,3.92079645,81.873,81.84,5.77318528]
[1770789508932,3.92079645,81.873,81.84,5.77163926]
[1770789510737,3.92079645,81.873,81.83,3.05657012]
[1770789511044,3.92079645,81.873,81.831,2.56335181]
[1770789513340,3.92079645,81.873,81.84,3.05657012]
[1770789514141,3.92079645,81.873,81.831,2.56335181]
[1770789515540,3.92079645,81.873,81.84,3.05657012]
[1770789517341,3.92079645,81.893,81.85,3.05657012]
[1770789517544,3.92079645,81.891,81.85,3.05657012]
[1770789517739,3.92079645,81.889,81.85,3.05657012]
[1770789518048,3.92079645,81.887,81.841,2.55036104]
[1770789518230,3.92079645,81.885,81.841,2.55036104]
[1770789518434,3.92079645,81.883,81.841,2.55036104]
[1770789518631,3.92079645,81.881,81.841,2.55036104]
[1770789518843,12.9139571,81.88,81.841,2.55036104]
[1770789519033,3.92079645,81.88,81.841,2.55036104]
[1770789521046,3.92079645,81.88,81.829,11.0055]
[1770789521047,3.92079645,81.878,81.83,5.6607158]
[1770789521346,3.92079645,81.876,81.83,5.6607158]
[1770789521545,3.92079645,81.874,81.83,5.6607158]
[1770789522050,3.92079645,81.872,81.83,5.6607158]
[1770789522348,3.92079645,81.87,81.83,5.6607158]
[1770789522540,3.92079645,81.848,81.786,2.60260521]
[1770789522739,3.92079645,81.848,81.791,2.60260521]
[1770789523044,3.92079645,81.848,81.8,5.65917533]
[1770789523236,3.92079645,81.848,81.801,2.60260521]
[1770789523943,3.92079645,81.847,81.801,2.60260521]
[1770789534355,3.9813689,81.844,81.801,2.60260521]
[1770789534555,3.9813689,81.839,81.801,2.60260521]
[1770789541854,97.5,81.877,81.811,3.04372703]
[1770789541855,3.9813689,81.854,81.811,3.04372703]
[1770789542058,12.96784704,81.853,81.811,3.04372703]
[1770789542257,3.9813689,81.853,81.811,3.04372703]
[1770789542758,3.9813689,81.851,81.811,3.04372703]
[1770789554257,3.9813689,81.851,81.82,5.78787347]
[1770789554457,15.10916513,81.888,81.747,201.84611563]
[1770789554458,3.9813689,81.868,81.83,3.05657012]
[1770789554650,3.9813689,81.866,81.821,2.73130335]
[1770789555455,3.9813689,81.88,81.841,2.73130335]
[1770789555654,10.9987,81.881,81.841,2.73130335]
[1770789555655,3.9813689,81.878,81.841,2.73130335]
[1770789557658,3.9813689,81.875,81.841,2.73130335]
[1770789557959,3.9813689,81.875,81.736,183.84436716]
[1770789557960,3.9813689,81.869,81.83,3.05657012]
[1770789558158,3.9813689,81.869,81.831,2.60322277]
[1770789559460,3.9813689,81.869,81.83,3.05657012]
[1770789559863,3.9813689,81.869,81.831,2.66070105]
[1770789561062,3.9813689,81.869,81.84,3.05657012]
[1770789564762,3.9813689,81.869,81.831,2.66070105]
[1770789570074,4.09419025,81.886,81.841,2.75353649]
[1770789570275,4.09419025,81.884,81.841,2.75353649]
[1770789570473,4.09419025,81.882,81.841,2.75353649]
[1770789572484,4.09419025,81.882,81.85,3.05642373]
[1770789573681,4.09419025,81.893,81.86,3.05642373]
[1770789573887,4.09419025,81.893,81.851,2.71943076]
[1770789576885,4.09419025,81.893,81.86,3.05642373]
[1770789578287,4.09419025,81.893,81.861,2.75524779]
[1770789578488,4.09419025,81.893,81.86,3.05642373]
[1770789579990,4.09419025,81.893,81.86,5.86963838]
[1770789581400,4.09419025,81.893,81.85,11.0028]
[1770789581595,4.09419025,81.893,81.851,2.81321465]
[1770789583300,4.09419025,81.893,81.86,3.05642373]
[1770789583499,4.09419025,81.893,81.85,14.05922373]
[1770789584095,4.09419025,81.893,81.85,16.89820868]
[1770789584396,4.09419025,81.893,81.853,11.0024]
[1770789584794,4.09419025,81.893,81.853,13.84138495]
[1770789585100,4.09419025,81.893,81.86,3.05642373]
[1770789585492,4.09419025,81.893,81.854,2.83898495]
[1770789589504,4.09419025,81.893,81.86,3.05642373]
[1770789590602,4.09419025,81.893,81.854,2.83898495]
[1770789593500,4.09419025,81.893,81.861,2.73135576]
[1770789596105,4.09419025,81.893,81.832,2.73326809]
[1770789596398,4.09419025,81.893,81.82,22.74819665]
[1770789596399,3.86799127,81.889,81.841,13.73716809]
[1770789596605,3.86799127,81.879,81.83,5.78834726]
[1770789596800,3.86799127,81.869,81.82,5.78834726]
[1770789597704,3.86799127,81.869,81.83,3.05507917]
[1770789600195,11.30321362,81.906,81.799,97.46]
[1770789600196,10.9961,81.901,81.85,3.05507917]
[1770789600405,11.98346802,81.9,81.85,7.03352582]
[1770789600606,8.92838885,81.899,81.85,7.03352582]
[1770789600797,8.92838885,81.898,81.85,7.03352582]
[1770789600997,3.05507917,81.9,81.85,7.03352582]
[1770789601205,8.92813791,81.899,81.85,7.03352582]
[1770789601402,3.05507917,81.89,81.84,3.05507917]
[1770789602311,3.86799127,81.889,81.84,3.05507917]
[1770789602501,3.86799127,81.888,81.841,3.97844665]
[1770789602701,3.86799127,81.879,81.836,11.0046]
[1770789602904,3.86799127,81.869,81.825,11.0061]
[1770789603100,3.86799127,81.869,81.83,3.05507917]
[1770789603803,3.86799127,81.869,81.825,11.0061]
[1770789603999,3.86799127,81.849,81.809,11.0082]
[1770789604302,3.86799127,81.849,81.81,3.05507917]
[1770789604695,3.86799127,81.863,81.82,3.05507917]
[1770789604900,3.86799127,81.863,81.83,3.05507917]
[1770789605096,3.86799127,81.876,81.84,7.03352582]
[1770789605302,3.86799127,81.876,81.85,3.05507917]
[1770789606502,3.86799127,81.894,81.85,3.05507917]
[1770789606704,3.86799127,81.892,81.85,3.05507917]
[1770789607106,3.86799127,81.89,81.85,3.05507917]
[1770789607610,3.86799127,81.889,81.85,3.05507917]
[1770789608709,3.86799127,81.889,81.85,7.03352582]
[1770789608910,3.86799127,81.909,81.86,3.05507917]
[1770789609107,3.86799127,81.907,81.86,3.05507917]
[1770789609311,3.86799127,81.905,81.86,3.05507917]
[1770789609713,3.86799127,81.905,81.861,3.97844665]
[1770789610011,3.86799127,81.905,81.87,3.05507917]
[1770789610208,3.86799127,81.905,81.861,3.97844665]
[1770789610405,3.86799127,81.899,81.85,7.03352582]
[1770789610713,3.86799127,81.889,81.84,3.05507917]
[1770789610913,3.86799127,81.889,81.842,11.0038]